Cogmind - Beta 16 @@@ ROGUE MODE // 2025.11.26 @ 23:23:46 Player: shapeshifter Result: Destroyed by OR-1JI(R) with Subdweller Machine Gun Performance ------------- Evolutions (0) 0 Regions Visited (3) 600 Robots Destroyed (31) 155 Value Destroyed (610) 610 Prototype IDs (0) 0 Alien Tech Used (0) 0 Bonus (0) 0 TOTAL SCORE: 1365 Bonus ------- None Cogmind --------- Core Integrity 0/250 Matter 290/300 Energy 64/100 System Corruption 0% Temperature Cool (0) Movement Rolling (115) Ox1 Location -10/Subcaves Parts ------- > --- POWER (1) -------- (None) > --- PROPULSION (2) --- Light Treads Compact Wheel > --- UTILITY (2) ------ Improved Heat Sink Large Storage Unit > --- WEAPON (2) ------- Particle Gun Particle Gun > --- INVENTORY (15) --- Compact Wheel High-capacity Storage Unit Faulty Experimental Sensor Array Hacking Suite Trap Extractor (0/4) Trap Extractor (0/4) Particle Gun Light EM Pulse Cannon Light EM Pulse Cannon Light EM Pulse Cannon Mini Grenade Launcher Mini Grenade Launcher Flail Peak State ------------ > --- POWER ------------ Ion Engine > --- PROPULSION ------- Light Treads Light Treads > --- UTILITY ---------- Improved Heat Sink Large Storage Unit > --- WEAPON ----------- Particle Gun Particle Gun > --- INVENTORY -------- Compact Wheel Compact Wheel High-capacity Storage Unit Experimental Sensor Array Hacking Suite Trap Extractor Trap Extractor Particle Gun Particle Gun Light EM Pulse Cannon Light EM Pulse Cannon Light EM Pulse Cannon Mini Grenade Launcher Mini Grenade Launcher Flail [Rating: 14] Favorites ----------- Power Ion Engine Engine Ion Engine Propulsion Light Treads Treads Light Treads Wheel Compact Wheel Utility Large Storage Unit Device Improved Heat Sink Storage Large Storage Unit Weapon Particle Gun Energy Gun Particle Gun Energy Cannon Light EM Pulse Cannon Ballistic Gun Assault Rifle Build | -11 -10 -10 -10 ------- Run | Yrd Mat Min Sub Slots Evolved . | . . . . Power . | . . . . Propulsion . | . . . . Utility . | . . . . Weapon . | . . . . Parts Attached 20 | 8 10 . 2 Power 3 | 1 2 . . Engine 3 | 1 2 . . Core . | . . . . Reactor . | . . . . Propulsion 4 | 2 1 . 1 Treads 3 | 2 1 . . Leg . | . . . . Wheel 1 | . . . 1 Hover . | . . . . Flight . | . . . . Utility 5 | 2 3 . . Device 3 | 1 2 . . Storage 2 | 1 1 . . Processor . | . . . . Hackware . | . . . . Protection . | . . . . Artifact . | . . . . Weapon 8 | 3 4 . 1 Energy Gun 4 | 1 2 . 1 Energy Cannon 2 | . 2 . . Ballistic Gun 2 | 2 . . . Ballistic Cannon . | . . . . Launcher . | . . . . Special Weapon . | . . . . Impact Weapon . | . . . . Slashing Weapon . | . . . . Piercing Weapon . | . . . . Special Melee Weapon . | . . . . Unidentified Prototypes . | . . . . Parts Lost 8 | . 5 . 3 Power 3 | . 2 . 1 Propulsion 1 | . . . 1 Utility 2 | . 2 . . Weapon 2 | . 1 . 1 Highest Loss Streak 2 | . 2 . 2 To Critical Strikes . | . . . . Average Backups 11 | 3 9 15 14 Power . | . . . . Propulsion 2 | 1 2 2 1 Utility 3 | . 2 4 5 Weapon 5 | . 4 8 7 Tool/Special . | . . . . Unused Backups 14 | . 1 1 12 Power . | . . . . Propulsion 1 | . . . 1 Utility 6 | . 1 . 5 Weapon 7 | . . 1 6 Tool/Special . | . . . . Average Slot Usage (%) 96 | . 96 100 87 Engine 13 | . 13 14 13 Treads 26 | . 28 28 15 Device 12 | . 11 14 14 Storage 14 | . 14 14 14 Energy Gun 17 | . 10 28 28 Energy Cannon 6 | . 11 . . Ballistic Gun 3 | . 6 . . Peak Build Rating 14 | 7 13 14 14 Average Rating 10 | 5 10 13 13 On Entrance 8 | . 7 13 14 Avg Prop Armor Cover (%) . | . . . . Naked Turns . | . . . . Heaviest Build 34 | 13 34 32 32 Greatest Support 40 | 40 40 40 40 Greatest Overweight (x) 1 | . . . 1 Average Overweight (x) . | . . . . Largest Inventory Capacity 15 | 8 15 15 15 Average Capacity 14 | 7 14 15 15 Most Carried 15 | 6 15 15 15 Average Carried 11 | 3 9 15 14 Final Capacity 15 | 8 15 15 15 Final Carried 15 | 5 15 15 13 Class Distribution -------------------- 100% | Mutant Dominant Class ---------------- Mutant | -10/Materials Mutant | -10/Mines Mutant | -10/Subcaves Resources | -11 -10 -10 -10 ----------- Run | Yrd Mat Min Sub Matter Collected 548 | 325 203 20 . Remotely . | . . . . Salvage Created 842 | 138 601 103 . Parts 54 | 12 38 4 . Haulers Intercepted . | . . . . Recyclers Shooed . | . . . . Parts Field Recycled . | . . . . Retrieved Matter . | . . . . Parts Self-Destructed . | . . . . Prevented . | . . . . Parts Restored . | . . . . Kills | -11 -10 -10 -10 ------- Run | Yrd Mat Min Sub Combat Hostiles Destroyed 23 | . 18 5 . Guns 17 | . 13 4 . Cannons 4 | . 4 . . Classes Destroyed 7 | 2 5 . . Builder 1 | . 1 . . Tunneler 3 | 3 . . . Recycler 1 | 1 . . . Operator 1 | . 1 . . Watcher 2 | . 2 . . Swarmer 12 | . 9 3 . Grunt 11 | . 9 2 . Best Kill Streak 6 | 2 6 2 . Combat Bots Only 3 | . 3 2 . Max Kills in Single Turn 2 | 1 2 1 . Gunslinging 1 | . 1 . . Exploded . | . . . . Melee . | . . . . Uniques/NPCs Destroyed . | . . . . Combat | -11 -10 -10 -10 -------- Run | Yrd Mat Min Sub Hostile Shots Fired 121 | . 79 19 23 Missed 25 | . 16 5 4 Hits 96 | . 63 14 19 Projectile 96 | . 63 14 19 Critical Strikes 1 | . 1 . . Damage Taken 1280 | . 695 147 438 Core 261 | . 46 20 195 Absorbed by Shields . | . . . . Core Remaining (%) 100 | 100 . . . Volleys Fired 99 | 15 58 15 11 Largest 2 | 2 2 2 2 Hottest 130 | 70 112 130 130 Shots Fired 189 | 30 107 30 22 Gun 167 | 30 85 30 22 Cannon 22 | . 22 . . Launcher . | . . . . Special . | . . . . Kinetic 62 | 15 47 . . Thermal 105 | 15 38 30 22 Explosive . | . . . . Electromagnetic 22 | . 22 . . Robot Hit Streak 18 | 9 18 9 10 Robot Miss Streak 5 | 2 5 2 4 Penetration Max . | . . . . Secondary Targets 3 | . 3 . . Max Gunslinging Chain 1 | . 1 . . Shots Hit Robots 121 | 18 68 20 15 Core Hits 42 | 5 29 6 2 Critical Kills . | . . . . Critical Parts Destroyed . | . . . . Critical Strikes 5 | 1 4 . . Burn 4 | 1 3 . . Corrupt 1 | . 1 . . Melee Attacks . | . . . . Impact . | . . . . Slashing . | . . . . Piercing . | . . . . Sneak Attacks . | . . . . Combat Hostiles . | . . . . Follow-up Attacks . | . . . . Damage Inflicted 1817 | 228 1042 313 234 Guns 1443 | 228 668 313 234 Cannons 374 | . 374 . . Explosions . | . . . . Melee . | . . . . Ramming . | . . . . Kinetic 495 | 140 355 . . Thermal 948 | 88 313 313 234 Explosive . | . . . . Electromagnetic 374 | . 374 . . Impact . | . . . . Slashing . | . . . . Piercing . | . . . . Highest Corruption . | . . . . Average Corruption . | . . . . Corruption Purged . | . . . . Corruption Blocked . | . . . . Overload Shots . | . . . . Overflow Damage . | . . . . Projectiles . | . . . . Explosions . | . . . . Melee . | . . . . Knockbacks . | . . . . Impact . | . . . . Kinetic . | . . . . Secondary . | . . . . Self-Inflicted Damage . | . . . . Shots . | . . . . Rammed . | . . . . Targets Rammed . | . . . . Kicked . | . . . . Crushed . | . . . . Highest Temperature 267 | 90 168 267 . Average Temperature 51 | 35 44 89 . Received Heat Transfer 369 | . 306 51 12 Siege Activations . | . . . . Martial Activations . | . . . . Shielding Activations . | . . . . Robots Disrupted . | . . . . Combat Hostiles . | . . . . Robots Corrupted 1 | . 1 . . Combat Hostiles 1 | . 1 . . Parts Fried 2 | . 2 . . Impact Corruptions . | . . . . Robots Melted 1 | . . 1 . Combat Hostiles 1 | . . 1 . Parts Melted 2 | . . 2 . Heat Transferred 2775 | 333 1147 740 555 Parts Sabotaged . | . . . . Parts Stolen . | . . . . Parts Stripped . | . . . . Power Chain Reactions . | . . . . Alert | -11 -10 -10 -10 ------- Run | Yrd Mat Min Sub Maximum Alert Level . | . . . . Low Security (%) 100 | 100 100 100 . Level 1 . | . . . . Level 2 . | . . . . Level 3 . | . . . . Level 4 . | . . . . Level 5 . | . . . . High Security . | . . . . Max Security . | . . . . Peak Influence 162 | 10 162 65 . Initial 16 | . . 16 . Average 50 | 1 75 14 . Influence Increases 656 | 20 501 135 . Destroy 0b10 Robot/C 460 | . 360 100 . Destroy 0b10 Robot/NC 40 | 20 20 . . Destroy Leader 104 | . 84 20 . Successful Hack 7 | . 7 . . Disable Machine 15 | . 15 . . Lose Combat Pursuer 30 | . 15 15 . Influence Decreases 656 | 20 458 178 . Entered New Map 27 | . . 27 . Time Decay 579 | 20 408 151 . Lost Part 50 | . 50 . . Squads Dispatched 4 | . 4 . . Investigation 2 | . 2 . . Extermination . | . . . . Reinforcement 2 | . 2 . . Assault . | . . . . Garrison . | . . . . Intercept . | . . . . Searches Triggered . | . . . . Construction Impeded . | . . . . Haulers Reinforced . | . . . . Active Scanning Responses . | . . . . Cargo Convoy Interrupts . | . . . . Stealth | -11 -10 -10 -10 --------- Run | Yrd Mat Min Sub Distress Signals 2 | . 2 . . Communications Jammed . | . . . . Distress Signals . | . . . . Times Spotted 37 | . 29 5 3 Peak Tracking Total 5 | . 5 2 2 Tactical Retreats 2 | . 1 1 . Traps | -11 -10 -10 -10 ------- Run | Yrd Mat Min Sub Traps Triggered 3 | . 2 . 1 Indirectly . | . . . . Trap Hack Attempts . | . . . . Triggered . | . . . . Disarmed . | . . . . Reprogrammed . | . . . . Reused . | . . . . Traps Extracted . | . . . . Installed . | . . . . Triggered . | . . . . Machines | -11 -10 -10 -10 ---------- Run | Yrd Mat Min Sub Machines Disabled 1 | . 1 . . Max in Single Turn 1 | . 1 . . Machines Repaired . | . . . . Machines Dismantled . | . . . . Machines Sabotaged . | . . . . Overloaded Fab Kills . | . . . . Hacking | -11 -10 -10 -10 --------- Run | Yrd Mat Min Sub Machines Accessed 4 | . 4 . . Terminals 3 | . 3 . . Fabricators . | . . . . Repair Stations . | . . . . Recycling Units 1 | . 1 . . Scanalyzers . | . . . . Garrison Access . | . . . . Total Hacks 9 | . 9 . . Successful 4 | . 4 . . Failed 5 | . 5 . . Catastrophic . | . . . . Database Lockouts . | . . . . Manual 6 | . 6 . . Terminals 7 | . 7 . . Fabricators . | . . . . Repair Stations . | . . . . Recycling Units 2 | . 2 . . Scanalyzers . | . . . . Garrison Access . | . . . . Terminal Hacks 2 | . 2 . . Registered Components 1 | . 1 . . Zone Layout 1 | . 1 . . Fabricator Hacks . | . . . . Repair Station Hacks . | . . . . Recycling Unit Hacks 1 | . 1 . . Retrieve Components 1 | . 1 . . Scanalyzer . | . . . . Garrison Access Hacks . | . . . . Unauthorized Hacks 1 | . 1 . . Terminals 1 | . 1 . . Skim 1 | . 1 . . Fabricators . | . . . . Repair Stations . | . . . . Recycling Units . | . . . . Scanalyzers . | . . . . Garrison Access . | . . . . Data Cores Recovered . | . . . . Used . | . . . . Hacking Detections 2 | . 2 . . Full Trace Events . | . . . . Feedback Events . | . . . . Feedback Blocked . | . . . . Robot Schematics Acquired . | . . . . Robots Built . | . . . . Authchips . | . . . . Time . | . . . . Total Robot Build Rating . | . . . . Part Schematics Acquired . | . . . . Parts Built . | . . . . Authchips . | . . . . Time . | . . . . Total Part Build Rating . | . . . . Part Studies Acquired . | . . . . Parts Repaired . | . . . . Time . | . . . . Parts Recycled . | . . . . Recycled Matter . | . . . . Retrieved Matter . | . . . . Retrieved Components 10 | . 10 . . Parts Scanalyzed . | . . . . Part Schematics Acquired . | . . . . Parts Damaged . | . . . . Bothacking | -11 -10 -10 -10 ------------ Run | Yrd Mat Min Sub Used RIF Installer . | . . . . Robots Hacked . | . . . . Non-combat . | . . . . Combat . | . . . . Robot Hacks Applied . | . . . . Relay Couplers Released . | . . . . Fabnet Peak Effective % . | . . . . Robots Rewired . | . . . . Allies Hacked . | . . . . Hacks Repelled . | . . . . Allies | -11 -10 -10 -10 -------- Run | Yrd Mat Min Sub Total Allies . | . . . . Largest Group . | . . . . Highest-Rated Group . | . . . . Highest-Rated Ally . | . . . . Total Orders . | . . . . Ally Attacks . | . . . . Total Damage . | . . . . Kills . | . . . . Allies Corrupted . | . . . . Allies Melted . | . . . . Intel | -11 -10 -10 -10 ------- Run | Yrd Mat Min Sub Active Infowar (turns) 294 | 13 281 . . Terrain 43 | . 43 . . Seismic 251 | 13 238 . . Robot Analysis Total . | . . . . Derelict Logs Recovered 1 | . . 1 . Drone Launches . | . . . . Drone Recoveries . | . . . . Exploration | -11 -10 -10 -10 ------------- Run | Yrd Mat Min Sub Turns Passed 1930 | 142 1050 548 190 Spaces Moved 947 | 62 516 307 62 Core 20 | 20 . . . Treads 927 | 42 516 307 62 Legs . | . . . . Wheels . | . . . . Hover . | . . . . Flight . | . . . . Fastest Speed 50 | 50 160 160 160 Average Speed 162 | 124 160 160 237 Slowest Speed 240 | 160 160 160 240 Overloaded Moves . | . . . . Propulsion Burnouts . | . . . . Robots Hopped . | . . . . Potential Cave-ins . | . . . . Cave-ins Triggered . | . . . . Exploration Rate (%) 37 | 5 76 60 8 Regions Visited 3 Branch Regions 2 Pre-discovered Areas 1 | . . 1 . Known Exits Taken . | . . . . Unknown Exits Taken 3 | 1 1 1 . Scrap Searched . | . . . . Spaces Dug . | . . . . Terrain Destroyed . | . . . . Melee . | . . . . Projectile . | . . . . AOE . | . . . . Terrain Rammed . | . . . . Walls Destroyed . | . . . . Machines Disabled . | . . . . Actions | -11 -10 -10 -10 --------- Run | Yrd Mat Min Sub Total 1150 | 96 637 334 83 Wait 43 | . 24 11 8 Move 944 | 61 515 306 62 Hop . | . . . . Pick Up 35 | 12 22 1 . Fast Attach . | . . . . Attach 18 | 7 9 . 2 Detach . | . . . . Swap 3 | 1 2 . . Drop 8 | . 7 1 . Fire 99 | 15 58 15 11 Melee . | . . . . Ram . | . . . . Kick . | . . . . Crush . | . . . . Escape Stasis . | . . . . Rewire . | . . . . Trap . | . . . . Miscellaneous . | . . . . Route ------- -11/Scrapyard -10/Materials (discovered 4 exits: [*Mat x2] / [*Min x2]) -10/Mines (discovered 2 exits: [*Mat] / [*Sub]) -10/Subcaves History --------- Turn | Location | Event 10 | -11/Scrapyard | Discovered new exit (range 15) 143 | -11/Scrapyard | Entered Materials 317 | -10/Materials | Build established: Mutant 492 | -10/Materials | Discovered new exit (range 9) 811 | -10/Materials | Discovered new exit (range 14) 907 | -10/Materials | Discovered new exit (range 16) 1070 | -10/Materials | Discovered new exit (range 12) 1193 | -10/Materials | Entered Mines 1275 | -10/Mines | Learned location of Mines (-9) 1313 | -10/Mines | Discovered new exit (range 3) 1673 | -10/Mines | Found a damaged Exp. Sensor Array with a note attached 1677 | -10/Mines | Found Prototype Device 1721 | -10/Mines | Discovered new exit (range 9) 1741 | -10/Mines | Entered Subcaves 1742 | -10/Subcaves | Approached by a straggling Scientist 1888 | -10/Subcaves | Shifting Twisted Machinery released Scrap Shield 1888 | -10/Subcaves | Shifting Twisted Machinery released Battle Rifle 1896 | -10/Subcaves | Ambushed by Subdwellers from Twisted Machinery 1919 | -10/Subcaves | Core integrity fell below 50% 1929 | -10/Subcaves | Core integrity fell below 20% 1931 | -10/Subcaves | Destroyed by OR-1JI(R) with Subdweller Machine Gun Last Messages --------------- back to the UFD." 01754_ Lgt. Treads destroyed. AS-OIZ(c): "I think it's somewhere west of here" 01796_ Triggered Piercing Trap. 01796_ Spikes shoot up from the floor. 01796_ Critical hit (Impale). 01800_ AS-OIZ(c) triggered Piercing Trap. 01800_ Spikes shoot up from the floor. 01800_ AS-OIZ(c) suffers critical hit (Impale). 01800_ AS-OIZ(c) destroyed. 01810_ Subatomizers dissect the Lgt. Ion Engine. Scrap Shield falls loose from the Twisted Machinery. Battle Rifle falls loose from the Twisted Machinery. 01896_ YJ-S79(R) emerges from the Twisted Machinery. 01915_ Particle Gun destroyed. 01923_ Ion Engine destroyed. Map ----- +----------------------------------------------------+ | ?????????????????????????????????????## ?? | | ?????????????????????????????????????# ^ #???? | | ?????????????????????????????????????# ^ #????? | | ?????????????????????????????????????## ##????# | | ????????????????????????????? ????????## % ##?### | | ???????????????????????????? ????????##* ### | | ???????????????????????????? #####???# ## | | ??????????????????????????? ??## ## | | ?????????????????????????? ?# ## # | | ?????????????????????????? ## #### # | | ?????????????????????????? # | | ?????????????????????????????????##### # | | ?????????????????????????##??????????## # | | ??????????????####?????## ???????????# | | ?????????????? # ##??## ??????????## | | ??????????????? ??# ??????????# #### ## | | ???????????????? ?## ????????#### ##?###?# | | ????????????????# ?# ????????# #?????? | | ????????????????# ?? #????????## #?????? | | ?????????????????# ??# #?????????# ##?????? | | ????????????????## ### #??????##### ##??????? | | ???????????????## ##????## ## ##??????? | | ?????????????### ##??## #??????? | | ????????????## #### ##??????? | | ????????????# R #???????? | | ????????????# R @ #???????? | | ????????????# #### ### # #???????? | | ????????????# "#??#####?####### ##???????? | | ????????????# ""##??????????????###????????? | | ????????????# !"""#??????????????????????????? | | ????????????# ["""#??????????????????????????? | | ????????????# ""#??????????????????????????? | | ???????????# "##??????????????????????????? | | ???????????# ##???????????????????????????? | | ???????????#" ###?????????????????????????????? | | ???????????"" #????????????????????????????????? | | ???????????#" "?????????????????????????????????? | | ???????????#" "??????????????????????????????????? | | ???????????#"????????????????????????????????????? | | ?????????????????????????????????????????????????? | | ?????????????????????????????????????????????????? | | ?????????????????????????????????????????????????? | | ?????????????????????????????????????????????????? | | ?????????????????????????????????????????????????? | | ?????????????????????????????????????????????????? | | ?????????????????????????????????????????????????? | | ?????????????????????????????????????????????????? | | ?????????????????????????????????????????????????? | | ?????????????????????????????????????????????????? | | ?????????????????????????????????????????????????? | +----------------------------------------------------+ Best States ------------- Heat Dissipation 39 Energy Generation 10 Energy Capacity 250 Matter Stores 300 Matter Capacity 300 Sight Range 16 Terrain Scan Range 16 Terrain Scan Density 10 Evasion (%) 50 Recoil Reduction 2 Item Schematics ----------------- None Robot Schematics ------------------ None Fabricated ------------ Nothing Repaired ---------- Nothing Studied --------- None Alien Tech Used ----------------- None Achievements -------------- None Challenges ------------ None Game ------ Seed RocketMatterDatajack Manual? 0 Play Time 00:07:05 Cumulative 556.2 hours Start 2025.11.26 @ 23:17:10 End 2025.11.26 @ 23:23:46 Sessions 1 Manual Loads 0 Difficulty Rogue Special Mode None Game No. 727 Rogue 727 Adventurer 0 Explorer 0 Win Type - Total 19 Types 8/1/2/2/2/0/2/2/0/0 Lore% 93 Gallery% 87 Achievement% 72 Wizard Run 0 Options --------- Layout 2 ASCII 0 Keyboard 0 Movement Mouse Keybinds 0 Fullscreen 1 Font 24/Tamsyn Map View 50x44 Zoom Use 0% Tactical HUD 1 Map Filters NONE Filters NONE Steam 1 RUN: 0ea1ffda-752b-40f0-a373-e5cd2f589b8d